[Event "Mitropa Cup Women 2019"]
[Site "Radenci"]
[Date "2019.05.28"]
[Round "2.15"]
[White "Gaal, Zsoka"]
[Black "Sankova, Stella"]
[Result "1-0"]
[ECO "A11"]
[WhiteElo "2044"]
[BlackElo "2013"]
[Annotator "NA"]
[PlyCount "179"]
[EventDate "2019.05.27"]
[EventType "team-tourn"]
[EventCountry "SLO"]
[SourceTitle "playchess.com"]
[Source "ChessBase"]
[SourceQuality "1"]
[TimeControl "40/5400+30:1800+30"]

1. Nf3 {[%emt 0:00:00]} d5 {[%emt 0:00:22]} 2. g3 {[%emt 0:00:00]} c6 {[%emt 0:00:00]} 3. Bg2 {[%emt 0:00:00]} Bg4 {[%emt 0:00:00]} 4. c4 {[%emt 0:00:09]} e6 {[%emt 0:00:12]} 5. cxd5 {[%emt 0:00:21]} Bxf3 {[%emt 0:00:11]} 6. Bxf3 {[%emt 0:00:11]} cxd5 {[%emt 0:00:07]} 7. O-O {[%emt 0:03:06]} Nf6 {[%emt 0:02:17]} 8. d4 {[%emt 0:00:43] A11: English Opening: 1...c6} Be7 {[%emt 0:01:04]} 9. Nc3 {[%emt 0:01:17]} Nc6 {[%emt 0:02:08]} 10. e3 {[%emt 0:02:33]} O-O {[%emt 0:01:09]} 11. Bd2 {[%emt 0:09:10]} a6 {[%emt 0:05:29]} 12. Be2 $146 {[%emt 0:01:45]} ({Predecessor:} 12. Rc1 Ne8 13. Na4 Nd6 14. b3 Ne4 15. Be1 f5 {1-0 (32) Karjakin,S (2775)-Jakovenko,D (2741) Moscow 2012}) 12... b5 {[%emt 0:03:49]} 13. Rc1 {[%emt 0:10:30]} Qb6 {[%emt 0:02:20]} 14. Bd3 {[%emt 0:10:34]} Rfc8 {[%emt 0:07:25]} 15. Qe2 {[%emt 0:05:42]} Na5 {[%emt 0:06:17]} 16. Rc2 {[%emt 0:06:05]} Nc4 {[%emt 0:14:03]} 17. Rfc1 {[%emt 0:03:08]} Qb7 {[%emt 0:04:37]} 18. Nb1 {[%emt 0:07:35]} Ne4 {[%emt 0:18:24]} 19. Be1 {[%emt 0:05:52]} Ncd6 {[%emt 0:09:56]} 20. Nd2 {[%emt 0:04:27]} Rxc2 {[%emt 0:04:23]} 21. Rxc2 {[%emt 0:01:44]} Rc8 {[%emt 0:00:06]} 22. Nb3 {[%emt 0:04:48]} Nc4 {[%emt 0:09:38]} 23. Qd1 {[%emt 0:07:32]} Qd7 {[%emt 0:04:39]} 24. Na5 {[%emt 0:05:57]} Ned6 {[%emt 0:01:18]} 25. Qc1 {[%emt 0:02:41]} Bd8 {[%emt 0:01:04]} 26. Nb3 {[%emt 0:01:06]} Bb6 {[%emt 0:00:57]} 27. Bb4 {[%emt 0:02:30]} Rc7 {[%emt 0:00:44]} 28. Bc5 {[%emt 0:01:54]} Bxc5 {[%emt 0:00:32]} 29. Nxc5 {[%emt 0:00:11]} Qc8 {[%emt 0:00:10]} 30. b3 {[%emt 0:00:36]} Nb6 {[%emt 0:00:21]} 31. a4 {[%emt 0:01:33]} Nd7 {[%emt 0:01:09]} 32. Nxd7 {[%emt 0:00:58]} Rxc2 {[%emt 0:00:05]} 33. Qxc2 {[%emt 0:00:18]} Qxd7 {[%emt 0:00:03]} 34. axb5 {[%emt 0:00:31]} axb5 {[%emt 0:00:44]} 35. Bxh7+ {[%emt 0:00:22]} Kh8 {[%emt 0:00:05]} 36. Bd3 {[%emt 0:00:11]} g6 {[%emt 0:00:59]} 37. Qc5 {[%emt 0:00:52]} Kg7 {[%emt 0:00:30]} 38. h4 {[%emt 0:00:17]} Kh6 {[%emt 0:01:04]} 39. Be2 {[%emt 0:01:20]} Kg7 {[%emt 0:00:12]} 40. Kg2 {[%emt 0:00:00]} Kh7 {[%emt 0:00:00]} 41. Bd3 {[%emt 0:08:23]} Kg7 {[%emt 0:01:47]} 42. Qb6 {[%emt 0:01:03]} Kh6 {[%emt 0:03:22]} 43. Be2 {[%emt 0:11:29]} Kg7 {[%emt 0:01:02]} 44. Bd3 $2 {[%emt 0:04:50]} (44. Bf1 $18) 44... Kh6 $1 {[%emt 0:00:10]} 45. Kf1 {[%emt 0:02:51]} Kg7 {[%emt 0:03:50]} 46. Qc5 {[%emt 0:00:14]} Kh6 {[%emt 0:02:02]} 47. Ke1 {[%emt 0:00:09]} Kg7 {[%emt 0:02:52]} 48. Kd2 {[%emt 0:00:53]} Qd8 {[%emt 0:05:44]} 49. Ke2 {[%emt 0:00:22]} Qd7 {[%emt 0:00:27]} 50. Kd1 {[%emt 0:00:20]} f5 {[%emt 0:01:28]} 51. Ke1 {[%emt 0:00:48]} Kh6 {[%emt 0:01:15]} 52. Kf1 {[%emt 0:00:24]} Kg7 {[%emt 0:01:41]} 53. Kg2 {[%emt 0:00:13]} Kf6 {[%emt 0:01:03]} 54. Qb6 {[%emt 0:01:37]} Kf7 {[%emt 0:01:06]} 55. Be2 {[%emt 0:01:37]} Kg7 {[%emt 0:00:19]} 56. Kg1 {[%emt 0:01:16]} Kf6 {[%emt 0:00:24]} 57. Qb8 {[%emt 0:00:27]} Kg7 {[%emt 0:00:38]} 58. Kg2 {[%emt 0:01:18]} Kh7 {[%emt 0:02:21]} 59. Qf8 {[%emt 0:02:04]} Ne4 {[%emt 0:02:48]} 60. h5 {[%emt 0:00:18]} g5 $2 {[%emt 0:04:25]} (60... Nd6 61. b4 gxh5 62. Bxh5 Qc7) 61. h6 {[%emt 0:00:33]} Nd6 {[%emt 0:01:30]} 62. Bd3 {[%emt 0:00:33]} g4 {[%emt 0:01:11]} 63. Kg1 {[%emt 0:00:35]} Qc7 {[%emt 0:00:23]} (63... Kg6 $142 64. Kh2 Ne8) 64. Qf6 {[%emt 0:00:32]} Qd7 {[%emt 0:00:14]} 65. Qg5 {[%emt 0:00:33]} Kh8 {[%emt 0:00:26]} 66. Qg6 {[%emt 0:00:18]} Qe7 {[%emt 0:00:20]} 67. h7 {[%emt 0:00:32]} Qe8 {[%emt 0:01:28]} 68. Qxe8+ {[%emt 0:00:22]} Nxe8 {[%emt 0:00:01]} 69. Bxb5 {[%emt 0:00:14]} Nc7 {[%emt 0:00:08]} 70. Bd7 {[%emt 0:00:50]} Kxh7 {[%emt 0:00:09]} 71. b4 {[%emt 0:00:17]} Kg6 {[%emt 0:00:50]} 72. b5 {[%emt 0:00:39]} Kf6 {[%emt 0:00:11]} 73. b6 {[%emt 0:00:24]} Na6 {[%emt 0:00:21]} 74. b7 {[%emt 0:00:41]} Nb8 {[%emt 0:01:36]} 75. Bc8 {[%emt 0:00:09]} e5 {[%emt 0:00:22]} 76. dxe5+ {[%emt 0:00:42]} Kxe5 {[%emt 0:00:05]} 77. Kf1 $18 {[%emt 0:00:08]} Nc6 {[%emt 0:00:43]} 78. Ke1 {[%emt 0:00:09]} Ke4 {[%emt 0:00:41]} 79. Be6 {[%emt 0:01:20]} Ke5 {[%emt 0:00:15]} 80. Bd7 {[%emt 0:00:11]} Nb8 {[%emt 0:00:04]} 81. Bc8 {[%emt 0:00:12]} Ke4 {[%emt 0:00:03]} 82. Kd2 {[%emt 0:01:11]} Na6 {[%emt 0:01:34]} 83. Kc3 {[%emt 0:00:37]} Kf3 {[%emt 0:00:49]} 84. Kd4 {[%emt 0:00:24]} Kxf2 {[%emt 0:00:09]} 85. Bxf5 {[%emt 0:00:27]} Kxg3 {[%emt 0:00:34]} 86. Kxd5 {[%emt 0:00:30]} Kf3 {[%emt 0:00:09]} 87. e4 {[%emt 0:00:42]} g3 {[%emt 0:00:07]} 88. Bh3 {[%emt 0:00:33]} g2 {[%emt 0:00:59]} 89. Bxg2+ $1 {[%emt 0:00:01]} Kxg2 {[%emt 0:00:05]} 90. e5 {[%emt 0:00:16]} 1-0

[Event "Mitropa Cup Women 2019"]
[Site "Radenci"]
[Date "2019.05.28"]
[Round "2.16"]
[White "Milcova, Zuzana"]
[Black "Kovacs, Judit"]
[Result "1/2-1/2"]
[ECO "B22"]
[WhiteElo "2093"]
[BlackElo "2025"]
[Annotator "NA"]
[PlyCount "91"]
[EventDate "2019.05.27"]
[EventType "team-tourn"]
[EventCountry "SLO"]
[SourceTitle "playchess.com"]
[Source "ChessBase"]
[SourceQuality "1"]
[TimeControl "40/5400+30:1800+30"]

1. e4 {[%emt 0:03:36]} c5 {[%emt 0:00:00]} 2. c3 {[%emt 0:00:19]} d5 {[%emt 0:00:00]} 3. exd5 {[%emt 0:00:20]} Qxd5 {[%emt 0:00:00]} 4. d4 {[%emt 0:00:07]} Nf6 {[%emt 0:00:09]} 5. Nf3 {[%emt 0:00:23]} e6 {[%emt 0:00:17]} 6. Na3 {[%emt 0:04:10]} Nc6 {[%emt 0:01:50]} 7. Be2 {[%emt 0:08:21]} Qd8 {[%emt 0:01:25]} 8. Nc2 {[%emt 0:02:00]} Be7 {[%emt 0:00:25]} 9. O-O {[%emt 0:01:05]} O-O {[%emt 0:00:17]} 10. h3 {[%emt 0:01:49] B22: Sicilian: 2 c3} (10. Ne5 cxd4 11. Nxc6 bxc6 12. Qxd4 c5 13. Qxd8 Rxd8 14. Na3 Rb8 15. Re1 Kf8 16. Kf1 Nd5 17. Nc4 Bb7 18. Na5 {½-½ (39) Tiviakov,S (2674)-Lenic,L (2565) Kallithea 2009}) 10... Qc7 $146 {[%emt 0:06:31]} ({Predecessor:} 10... b6 11. Bf4 Bb7 12. Qd2 cxd4 13. Ncxd4 Nxd4 14. Nxd4 Nd5 15. Bg3 Bd6 16. Bxd6 Qxd6 17. Bf3 Qe7 {½-½ (35) Strange,M (2364)-Jakobsen,P (2174) Allerod 2019}) 11. dxc5 {[%emt 0:09:15]} Rd8 {[%emt 0:06:22]} 12. Qe1 {[%emt 0:00:45]} Bxc5 {[%emt 0:01:18]} 13. Be3 {[%emt 0:11:00]} Bxe3 {[%emt 0:03:50]} 14. Nxe3 {[%emt 0:02:57]} b6 {[%emt 0:01:53]} 15. Rd1 {[%emt 0:08:59]} Bb7 {[%emt 0:02:38]} 16. Rxd8+ {[%emt 0:07:47]} Rxd8 {[%emt 0:00:14]} 17. Qc1 {[%emt 0:01:03]} Ne7 {[%emt 0:17:19]} 18. Rd1 {[%emt 0:04:24]} Ned5 {[%emt 0:04:30]} 19. Nxd5 {[%emt 0:17:50]} Nxd5 {[%emt 0:02:38]} 20. Qg5 {[%emt 0:05:17]} Rc8 {[%emt 0:14:05]} 21. Rd4 {[%emt 0:01:00]} Nf6 {[%emt 0:10:39]} 22. Qe5 {[%emt 0:03:41]} Kf8 {[%emt 0:06:41]} 23. Qxc7 {[%emt 0:01:13]} Rxc7 {[%emt 0:00:05]} 24. Ne5 {[%emt 0:01:23]} Ke7 {[%emt 0:01:37]} 25. Bf3 {[%emt 0:01:14]} Bxf3 {[%emt 0:06:32]} 26. Nxf3 {[%emt 0:00:04]} Nd7 {[%emt 0:00:09]} 27. Kf1 {[%emt 0:00:20]} e5 {[%emt 0:01:19]} 28. Rd2 {[%emt 0:01:07]} f6 {[%emt 0:01:19]} 29. Ne1 {[%emt 0:01:12]} Nc5 {[%emt 0:03:32]} 30. Nc2 {[%emt 0:00:33]} Rd7 {[%emt 0:00:43]} 31. Rxd7+ {[%emt 0:00:49]} Kxd7 {[%emt 0:00:06]} 32. Ne3 {[%emt 0:00:25]} Nd3 {[%emt 0:03:27]} 33. Nd1 {[%emt 0:00:08]} Nf4 {[%emt 0:00:38]} 34. h4 {[%emt 0:00:50]} Ke6 {[%emt 0:01:50]} 35. g3 {[%emt 0:00:37]} Nd3 {[%emt 0:00:35]} 36. a3 {[%emt 0:00:43]} b5 {[%emt 0:02:04]} 37. Ke2 {[%emt 0:00:40]} e4 {[%emt 0:00:46]} 38. Kd2 {[%emt 0:00:47]} Ne5 {[%emt 0:00:37]} 39. b3 {[%emt 0:00:34]} g6 {[%emt 0:00:22]} 40. Ne3 {[%emt 0:00:00]} Kd6 {[%emt 0:00:00]} 41. Nc2 {[%emt 0:10:15]} Ng4 {[%emt 0:10:35]} 42. Ke2 {[%emt 0:01:47]} a5 {[%emt 0:00:29]} 43. Nd4 {[%emt 0:04:35]} Kc5 $11 {[%emt 0:02:05]} 44. Ne6+ {[%emt 0:01:51]} Kd5 {[%emt 0:03:31]} 45. Nc7+ {[%emt 0:02:32]} Kc6 {[%emt 0:01:24]} 46. Ne6 {[%emt 0:04:00]} 1/2-1/2

[Event "Mitropa Cup Women 2019"]
[Site "Radenci"]
[Date "2019.05.29"]
[Round "3.1"]
[White "Pychova, Nela"]
[Black "Havanecz, Bianka"]
[Result "0-1"]
[ECO "C00"]
[WhiteElo "2174"]
[BlackElo "2279"]
[Annotator "NA"]
[PlyCount "82"]
[EventDate "2019.05.27"]
[EventType "team-tourn"]
[EventCountry "SLO"]
[SourceTitle "playchess.com"]
[Source "ChessBase"]
[SourceQuality "1"]
[WhiteTeam "Czech Republic"]
[BlackTeam "Hungary"]
[WhiteTeamCountry "CZE"]
[BlackTeamCountry "HUN"]
[TimeControl "40/5400+30:1800+30"]

1. Nf3 {[%emt 0:00:00]} d5 {[%emt 0:00:00]} 2. g3 {[%emt 0:00:00]} Nf6 {[%emt 0:00:00]} 3. Bg2 {[%emt 0:00:00]} e6 {[%emt 0:00:00]} 4. O-O {[%emt 0:00:52]} Be7 {[%emt 0:00:00]} 5. d3 {[%emt 0:02:41]} O-O {[%emt 0:00:04]} 6. Nbd2 {[%emt 0:00:59]} c5 {[%emt 0:00:13]} 7. e4 {[%emt 0:00:41]} Nc6 {[%emt 0:00:11]} 8. Re1 {[%emt 0:00:24]} Qc7 {[%emt 0:00:21]} 9. Nf1 {[%emt 0:02:56]} b5 {[%emt 0:03:44]} 10. e5 {[%emt 0:03:47]} Nd7 {[%emt 0:00:07]} 11. Bf4 {[%emt 0:00:08]} Bb7 {[%emt 0:00:14]} 12. h4 {[%emt 0:01:03]} Rfc8 {[%emt 0:00:06] C00: French: Unusual White 2nd moves} 13. h5 {[%emt 0:03:26]} (13. Ne3 Qd8 14. Ng4 Bf8 15. Bg5 Qe8 16. c3 h6 17. Bf4 a5 18. Qd2 b4 19. c4 Ne7 20. h5 {1-0 (59) Kuzubov,Y (2699)-Grischuk,A (2772) Riadh 2017}) 13... h6 {[%emt 0:00:06]} 14. N1h2 {[%emt 0:01:16]} Qd8 {[%emt 0:00:11]} 15. Qd2 {[%emt 0:11:19]} a5 {[%emt 0:00:42]} 16. g4 {[%emt 0:02:23]} a4 {[%emt 0:04:15]} 17. a3 {[%emt 0:08:15]} b4 {[%emt 0:01:55] [#]} 18. g5 $146 {[%emt 0:04:13]} ({Predecessor:} 18. c3 bxc3 19. bxc3 Na5 20. Qc2 {1-0 (42) Petrosian,T (2610)-Koustav,C (2325) Abu Dhabi 2018}) 18... hxg5 {[%emt 0:00:29]} 19. Nxg5 {[%emt 0:03:41]} Ndxe5 {[%emt 0:08:47]} 20. Nxe6 {[%emt 0:06:08]} fxe6 {[%emt 0:00:36]} 21. Bxe5 {[%emt 0:00:13]} Nxe5 {[%emt 0:00:10]} 22. Rxe5 {[%emt 0:00:07]} Bf6 {[%emt 0:01:35]} 23. Rae1 {[%emt 0:03:47]} Bxe5 {[%emt 0:00:37]} 24. Rxe5 {[%emt 0:00:01]} bxa3 {[%emt 0:00:24]} (24... Rc7 $17 25. Ng4 c4 26. Qxb4 cxd3 27. cxd3 Qe7 28. Qxe7 Rxe7) 25. bxa3 {[%emt 0:00:11]} Ra6 {[%emt 0:02:37]} 26. h6 {[%emt 0:04:56]} (26. Rg5 $11) 26... Rc7 {[%emt 0:01:59]} 27. Ng4 {[%emt 0:06:50]} Qh4 {[%emt 0:03:14]} 28. Qf4 {[%emt 0:12:33]} Rf7 {[%emt 0:02:49]} 29. h7+ {[%emt 0:00:36]} Qxh7 {[%emt 0:00:56]} 30. Qg5 {[%emt 0:00:17]} Rd6 {[%emt 0:23:41]} 31. Re3 {[%emt 0:02:43]} e5 {[%emt 0:00:05]} 32. Rxe5 $17 {[%emt 0:10:07]} Qg6 {[%emt 0:03:07]} 33. Qh4 {[%emt 0:04:14]} Rf5 {[%emt 0:05:17]} 34. Re3 {[%emt 0:03:30]} d4 {[%emt 0:12:08]} 35. Rg3 {[%emt 0:00:34]} Bxg2 {[%emt 0:00:15]} 36. Kxg2 {[%emt 0:01:34]} Qf7 {[%emt 0:02:14]} 37. Rh3 {[%emt 0:01:19]} Qd5+ {[%emt 0:00:17]} 38. f3 {[%emt 0:00:37]} Rg6 {[%emt 0:00:49]} 39. Qh8+ {[%emt 0:00:30]} Kf7 {[%emt 0:00:05]} 40. Qh4 {[%emt 0:00:00]} Rxg4+ {[%emt 0:00:00]} 41. Qxg4 {[%emt 0:00:50]} Rg5 {[%emt 0:00:30]} 0-1

[Event "Mitropa Cup Women 2019"]
[Site "Radenci"]
[Date "2019.05.29"]
[Round "3.2"]
[White "Varga, Klara"]
[Black "Nemcova, Karin"]
[Result "1-0"]
[ECO "A36"]
[WhiteElo "2146"]
[BlackElo "1947"]
[Annotator "NA"]
[PlyCount "69"]
[EventDate "2019.05.27"]
[EventType "team-tourn"]
[EventCountry "SLO"]
[SourceTitle "playchess.com"]
[Source "ChessBase"]
[SourceQuality "1"]
[WhiteTeam "Hungary"]
[BlackTeam "Czech Republic"]
[WhiteTeamCountry "HUN"]
[BlackTeamCountry "CZE"]
[TimeControl "40/5400+30:1800+30"]

1. c4 {[%emt 0:00:00]} c5 {[%emt 0:00:00]} 2. Nc3 {[%emt 0:00:00]} Nc6 {[%emt 0:00:00]} 3. g3 {[%emt 0:00:00]} g6 {[%emt 0:00:00]} 4. Bg2 {[%emt 0:00:00]} Bg7 {[%emt 0:00:06]} 5. e3 {[%emt 0:00:02]} e6 {[%emt 0:00:08]} 6. Nge2 $11 {[%emt 0:00:11]} Nge7 {[%emt 0:00:08]} 7. O-O {[%emt 0:00:35]} O-O {[%emt 0:00:08]} 8. Nf4 {[%emt 0:05:21]} Rb8 {[%emt 0:05:26]} 9. Rb1 {[%emt 0:07:48]} a6 {[%emt 0:02:31]} 10. a3 {[%emt 0:00:09]} b5 {[%emt 0:04:08]} 11. cxb5 {[%emt 0:00:09]} axb5 {[%emt 0:00:08]} 12. b4 {[%emt 0:00:03]} cxb4 {[%emt 0:01:10]} 13. axb4 {[%emt 0:00:02]} d5 {[%emt 0:00:40]} 14. d4 {[%emt 0:15:19]} Nf5 {[%emt 0:02:15]} 15. Qc2 {[%emt 0:08:26]} Bd7 {[%emt 0:01:27]} 16. h4 {[%emt 0:03:48]} h5 {[%emt 0:00:18]} 17. Qe2 {[%emt 0:01:13]} Nd6 {[%emt 0:01:42]} 18. Bf3 {[%emt 0:02:15]} Bf6 {[%emt 0:06:43]} 19. Kg2 {[%emt 0:04:16]} Kg7 {[%emt 0:03:39]} 20. Bxh5 {[%emt 0:19:15]} gxh5 {[%emt 0:04:55]} 21. Nxh5+ {[%emt 0:00:03]} Kh8 {[%emt 0:05:33]} 22. e4 {[%emt 0:02:46]} dxe4 {[%emt 0:08:57]} 23. Qd2 {[%emt 0:12:17]} Nf5 {[%emt 0:07:03]} 24. Nxe4 {[%emt 0:00:44]} Bxd4 {[%emt 0:07:44]} 25. Bb2 {[%emt 0:00:52]} Rg8 {[%emt 0:04:53]} 26. Nd6 {[%emt 0:04:19]} Qf8 {[%emt 0:08:13]} 27. Nxf5 {[%emt 0:00:45]} Bxb2 {[%emt 0:06:25]} 28. Qxd7 {[%emt 0:04:12]} Ne5 {[%emt 0:03:42]} 29. Qd1 {[%emt 0:00:18]} exf5 {[%emt 0:06:14]} 30. Rxb2 {[%emt 0:00:09]} Qh6 {[%emt 0:00:39]} 31. Re1 {[%emt 0:05:41]} Rbd8 {[%emt 0:02:02]} 32. Qc2 {[%emt 0:01:06]} Qxh5 {[%emt 0:04:52]} 33. Rxe5 {[%emt 0:00:03]} Qxh4 {[%emt 0:01:31]} 34. Rxf5 {[%emt 0:00:39]} Rd6 {[%emt 0:02:08]} 35. Rxf7 {[%emt 0:00:31]} 1-0

[Event "Mitropa Cup Women 2019"]
[Site "Radenci"]
[Date "2019.05.29"]
[Round "3.3"]
[White "Koubova, Anna Marie"]
[Black "Gaal, Zsoka"]
[Result "1/2-1/2"]
[ECO "E69"]
[WhiteElo "1975"]
[BlackElo "2044"]
[Annotator "NA"]
[PlyCount "52"]
[EventDate "2019.05.27"]
[EventType "team-tourn"]
[EventCountry "SLO"]
[SourceTitle "playchess.com"]
[Source "ChessBase"]
[SourceQuality "1"]
[WhiteTeam "Czech Republic"]
[BlackTeam "Hungary"]
[WhiteTeamCountry "CZE"]
[BlackTeamCountry "HUN"]
[TimeControl "40/5400+30:1800+30"]

1. d4 {[%emt 0:00:00]} Nf6 {[%emt 0:00:00]} 2. c4 {[%emt 0:00:00]} g6 {[%emt 0:00:00]} 3. g3 {[%emt 0:00:00]} Bg7 {[%emt 0:00:00]} 4. Bg2 {[%emt 0:00:00]} O-O {[%emt 0:00:00]} 5. Nc3 {[%emt 0:00:08]} d6 {[%emt 0:00:14]} 6. Nf3 {[%emt 0:00:16]} Nbd7 {[%emt 0:00:07]} 7. O-O {[%emt 0:00:09]} e5 {[%emt 0:00:03]} 8. e4 {[%emt 0:00:15]} c6 {[%emt 0:00:08]} 9. h3 {[%emt 0:00:42]} Qa5 {[%emt 0:00:07]} 10. Be3 {[%emt 0:04:54]} Nb6 {[%emt 0:00:17]} 11. Qd3 {[%emt 0:04:13]} exd4 {[%emt 0:04:56]} 12. Nxd4 {[%emt 0:03:57]} Qh5 {[%emt 0:03:32]} 13. g4 {[%emt 0:18:10]} Bxg4 {[%emt 0:03:18]} 14. hxg4 {[%emt 0:00:26]} Nxg4 {[%emt 0:00:46]} 15. Nf3 {[%emt 0:00:15]} Be5 {[%emt 0:05:55]} 16. Rfe1 {[%emt 0:02:31]} f5 {[%emt 0:12:42]} 17. c5 {[%emt 0:38:58]} fxe4 {[%emt 0:10:46]} 18. Nxe4 {[%emt 0:00:33]} Nd5 {[%emt 0:00:46]} 19. Nxe5 {[%emt 0:07:11]} Nxe5 {[%emt 0:18:14]} 20. Qe2 {[%emt 0:02:50]} Nf3+ {[%emt 0:08:39]} 21. Bxf3 {[%emt 0:00:19]} Rxf3 {[%emt 0:00:09]} 22. Ng5 {[%emt 0:06:03]} Qg4+ {[%emt 0:05:39]} 23. Kh2 {[%emt 0:01:05]} Qh4+ {[%emt 0:03:00]} 24. Kg1 {[%emt 0:02:39]} Qg4+ {[%emt 0:07:06]} 25. Kh2 {[%emt 0:00:14]} Qh4+ {[%emt 0:09:33]} 26. Kg1 {[%emt 0:00:06]} Qg4+ {[%emt 0:04:32]} 1/2-1/2

[Event "Mitropa Cup Women 2019"]
[Site "Radenci"]
[Date "2019.05.29"]
[Round "3.4"]
[White "Kovacs, Judit"]
[Black "Pribylova, Sofie"]
[Result "1-0"]
[ECO "A16"]
[WhiteElo "2025"]
[BlackElo "2069"]
[Annotator "NA"]
[PlyCount "85"]
[EventDate "2019.05.27"]
[EventType "team-tourn"]
[EventCountry "SLO"]
[SourceTitle "playchess.com"]
[Source "ChessBase"]
[SourceQuality "1"]
[WhiteTeam "Hungary"]
[BlackTeam "Czech Republic"]
[WhiteTeamCountry "HUN"]
[BlackTeamCountry "CZE"]
[TimeControl "40/5400+30:1800+30"]

1. Nf3 {[%emt 0:00:00]} Nf6 {[%emt 0:00:00]} 2. c4 {[%emt 0:00:00]} g6 {[%emt 0:00:00]} 3. Nc3 {[%emt 0:00:00]} d5 {[%emt 0:00:07]} 4. cxd5 {[%emt 0:00:00]} Nxd5 {[%emt 0:00:04]} 5. h4 {[%emt 0:00:03]} h5 {[%emt 0:01:48]} 6. e4 {[%emt 0:00:18]} Nxc3 {[%emt 0:02:18]} 7. dxc3 {[%emt 0:00:11]} Qxd1+ {[%emt 0:08:34]} 8. Kxd1 {[%emt 0:00:07]} Bg4 {[%emt 0:03:13]} 9. Kc2 {[%emt 0:01:09]} f6 {[%emt 0:04:12]} 10. e5 {[%emt 0:21:47]} Nc6 {[%emt 0:11:20]} 11. Bd3 {[%emt 0:08:53]} Kf7 {[%emt 0:15:13]} 12. Re1 {[%emt 0:05:27]} Bh6 {[%emt 0:07:12]} 13. Bxh6 {[%emt 0:06:54]} Rxh6 {[%emt 0:00:04]} 14. Bc4+ {[%emt 0:01:15]} Kg7 {[%emt 0:03:14]} 15. exf6+ {[%emt 0:01:03]} exf6 {[%emt 0:01:23]} 16. Bd5 {[%emt 0:00:14]} Rf8 {[%emt 0:11:24]} 17. Bxc6 {[%emt 0:06:29]} bxc6 {[%emt 0:00:04]} 18. Nd4 {[%emt 0:00:09]} c5 {[%emt 0:02:15]} 19. Ne6+ {[%emt 0:02:11]} Bxe6 {[%emt 0:00:06]} 20. Rxe6 {[%emt 0:00:06]} g5 {[%emt 0:00:53]} 21. Rc6 {[%emt 0:07:13]} Rf7 {[%emt 0:03:41]} 22. Rxc5 {[%emt 0:00:23]} gxh4 {[%emt 0:00:11]} 23. Rh1 {[%emt 0:00:18]} Rg6 {[%emt 0:00:36]} 24. Rh2 {[%emt 0:01:32]} f5 {[%emt 0:03:35]} 25. b4 {[%emt 0:16:55]} Kf8 {[%emt 0:02:38]} 26. Kb3 {[%emt 0:00:26]} Ke8 {[%emt 0:00:22]} 27. f3 {[%emt 0:01:03]} Kd7 {[%emt 0:09:53]} 28. Rxh4 {[%emt 0:05:16]} Rxg2 {[%emt 0:00:53]} 29. Rxh5 {[%emt 0:00:29]} f4 {[%emt 0:02:31]} 30. Rhf5 {[%emt 0:01:42]} Rgg7 {[%emt 0:01:58]} 31. Kc4 {[%emt 0:00:33]} c6 {[%emt 0:00:44]} 32. Kd4 {[%emt 0:01:13]} Kd6 {[%emt 0:00:35]} 33. Ke4 {[%emt 0:00:51]} Rxf5 {[%emt 0:01:53]} 34. Rxf5 {[%emt 0:00:15]} Rg2 {[%emt 0:00:02]} 35. a4 {[%emt 0:00:13]} Rc2 {[%emt 0:00:56]} 36. Kd3 {[%emt 0:00:49]} Ra2 {[%emt 0:00:14]} 37. a5 {[%emt 0:00:08]} Ke6 {[%emt 0:00:42]} 38. Rxf4 {[%emt 0:00:09]} c5 {[%emt 0:00:02]} 39. Kc4 {[%emt 0:00:54]} cxb4 {[%emt 0:00:05]} 40. cxb4 {[%emt 0:00:00]} a6 {[%emt 0:00:00]} 41. Rh4 {[%emt 0:00:25]} Rc2+ {[%emt 0:01:35]} 42. Kd4 {[%emt 0:01:30]} Kd7 {[%emt 0:00:43]} 43. Rh6 {[%emt 0:00:26]} 1-0